Workbook

Sheet How to Use the Tool

Sheet General Warehouse Information
D3: www.highjump.com
B6: HighJump WMS Savings Calculator
B7: COMPANY INFO
B8: Annual growth rate | C8: 0.05 | D8: Will impact NPV calculation
B9: Planning horizon | C9: 3 | D9: Will impact NPV calculation
B10: NPV discount rate | C10: 0.15 | D10: Will impact NPV calculation
B11: Labor burden rate | C11: 0.4 | D11: Factors into labor costs
B12: Type of distribution operation | D12: Will impact order fulfillment gain assumption
B14: Labor Cost
B15: WAREHOUSE
B16: Warehouse worker hourly wage | C16: 12
B17: Total hourly burdened cost of labor | C17: =C16+(LB*C16) -> 16.8
B19: CLERICAL
B20: Clerical hourly wage | C20: 11
B21: Total hourly burdened cost of labor | C21: =C20+(LB*C20) -> 15.4
B23: CUSTOMER SERVICE
B24: Customer service hourly wage | C24: 10
B25: Total hourly burdened cost of labor | C25: =C24+(LB*C24) -> 14
B27: Order Statistics
B28: PICKING STATS | C28: AVERAGE | D28: PEAK
B29: Number of sales orders per day | C29: 300 | D29: 400
B30: Number of lines per order | C30: 2 | D30: 2
B31: Number of full carton picks per order | C31: 2 | D31: 2
B32: Number of full pallet picks per order | C32: 0 | D32: 0
B33: Number of units picked per order | C33: 20 | D33: 40
B34: Number of shipped cartons per order | C34: 3 | D34: 7
B36: RECEIVING STATS | C36: AVERAGE | D36: PEAK
B37: Number of purchase orders per day | C37: 5 | D37: 8
B38: Number of lines per PO | C38: 100 | D38: 150
B39: Number of cartons per PO | C39: 1500 | D39: 2000
B40: Number of pallets per PO | C40: 0 | D40: 0
B41: Number of units per PO | C41: 10000 | D41: 10000
B43: Length of peak season (in months) | C43: 3
B45: Warehouse Staffing
B46: Resources are based on the number of 8-hour shifts. If one resource spends 4 hours per day on a task, then the quantity is .5
B47: STAFF | C47: AVERAGE | D47: PEAK
B48: Pickers | C48: 10 | D48: 12
B49: Packers | C49: 2 | D49: 3
B50: Stock handlers | C50: 3 | D50: 3
B51: Shippers | C51: 2 | D51: 2
B52: Receivers | C52: 2 | D52: 4
B54: CLERICAL | C54: AVERAGE | D54: PEAK
B55: Receipt confirmations | C55: 1 | D55: 1.5
B56: Pick confirmations | C56: 1 | D56: 1.5
B58: Physical Inventory Count Data
B59: Warehouse personnel for the following functions:
C60: Pickers
C61: Packers
C62: Stock handlers
C63: Shippers
C64: Receivers
B65: Data entry clerks for the following functions
C66: Receipt confirmations
C67: Pick confirmations
B69: Shift 3
B70: Warehouse personnel for the following functions
C71: Pickers
C72: Packers
C73: Stock handlers
C74: Shippers
C75: Receivers
B76: Data entry clerks for the following functions
C77: Receipt confirmations
C78: Pick confirmations
B80: Physical Inventory Count Data
B81: PHYSICAL | C81: QUANTITY
B82: Number of counts per year | C82: 1
B83: Number of actual staff counting | C83: 12
B84: Number of count days | C84: 4
B86: CLERICAL | I86: 0
B87: Number of administrative personnel | C87: 3
B88: Number of days required for admin | C88: 5 | I88: 0
I89: 0
B90: Warehouse Accuracy Data
B91: ACCURACY | C91: QUANTITY
B92: Number of mis-shipments per day | C92: 2
B93: Average cost per mis-shipment | C93: 150
B94: Number of miss-shipments per day | C94: 2
B95: Average cost per mis-shipment | C95: 150
B97: Vendor Compliance
B98: EDI
B99: Do your customers require EDI?
B100: Do your customers require UCC-128 shipping labels for ASN compliance?
B102: Number of data entry clerks employed to cross-reference UCC numbers and items? | D102: 1
B103: Number of resources dedicated to the UCC packing and labeling process? | D103: 1
B104: Compliance fines value last year? | D104: 30000
B108: www.highjump.com

Sheet Calculations
E1: Annual Savings | F1: NPV
D2: Conservative | E2: =+F36 -> 340350 | F2: =+D38 -> 932263.0435
D3: Aggressive | E3: =+F128 -> 606897.498 | F3: =+D130 -> 1662371.408
C5: Quick Calculations: Hard Savings Analysis
C6: Your Current Warehouse Costs
E7: RESOURCE COST
C8: RESOURCE FUNCTION | D8: % of total | E8: Cost/day | F8: Cost/year
C9: Picking | D9: =F9/GT -> 0.4277533081 | E9: =(((((261*((12-PKS)/12))*BCLW*'General Warehouse Information'!C48*8) / ((261*((12-PKS)/12))*OrdersN))*OrdersN) + ((((261*((PKS)/12))*BCLW*'General Warehouse Information'!D48*8) / ((261*(PKS/12))*OrdersP))*OrdersP))/2 -> 1478.4 | F9: =261*E9 -> 385862.4
C10: Packing/checking | D10: 0.09721666092 | E10: =(((((261*((12-PKS)/12))*BCLW*'General Warehouse Information'!C49*8) / ((261*((12-PKS)/12))*OrdersN))*OrdersN) + ((((261*((PKS)/12))*BCLW*'General Warehouse Information'!D49*8) / ((261*(PKS/12))*OrdersP))*OrdersP))/2 -> 336 | F10: 87696
C11: Stock handling | D11: 0.1166599931 | E11: =(('General Warehouse Information'!C50*BCLW*8)*((12-PKS)/12))+(('General Warehouse Information'!D50*BCLW*8)*((PKS/12))) -> 403.2 | F11: 105235.2
C12: Shipping | D12: 0.07777332874 | E12: =(((((261*((12-PKS)/12))*BCLW*'General Warehouse Information'!C51*8) / ((261*((12-PKS)/12))*OrdersN))*OrdersN) + ((((261*((PKS)/12))*BCLW*'General Warehouse Information'!D51*8) / ((261*(PKS/12))*OrdersP))*OrdersP))/2 -> 268.8 | F12: 70156.8
C13: Receivers | D13: 0.1166599931 | E13: =(((((261*((12-PKS)/12))*BCLW*'General Warehouse Information'!C52*8) / ((261*((12-PKS)/12))*PON))*PON) + ((((261*((PKS)/12))*BCLW*'General Warehouse Information'!D52*8) / ((261*(PKS/12))*POP))*POP))/2 -> 403.2 | F13: 105235.2
C14: Data entry clerks: Warehouse ops | D14: 0.08020374526 | E14: =((('General Warehouse Information'!C55*BCLD*8)*((12-PKS)/12))+(('General Warehouse Information'!D55*BCLD*8)*((PKS/12))))+((('General Warehouse Information'!C56*BCLD*8)*((12-PKS)/12))+(('General Warehouse Information'!D56*BCLD*8)*((PKS/12)))) -> 277.2 | F14: 72349.2
C15: Physical count labor | D15: 0.007151570459 | E15: --- | F15: =+('General Warehouse Information'!C82*'General Warehouse Information'!C83*'General Warehouse Information'!C84)*BCLW*8 -> 6451.2
C16: Data entry clerks: Physical count | D16: 0.002048626954 | E16: --- | F16: ='General Warehouse Information'!C87*'General Warehouse Information'!C88*BCLD*8 -> 1848
C17: Data entry clerks: EDI | D17: 0.03564610901 | E17: ='General Warehouse Information'!D102*BCLD*8 -> 123.2 | F17: =261*E17 -> 32155.2
C18: EDI warehouse labor | D18: 0.03888666437 | E18: ='General Warehouse Information'!D103*BCLW*8 -> 134.4 | F18: =261*E18 -> 35078.4
C19: Total warehouse-related labor costs per year | F19: =SUM(F9:F18) -> 902067.6
C21: COST OF MIS-SHIPMENTS | E21: Per day | F21: Per year
C22: Number of mis-shipments | E22: ='General Warehouse Information'!C94 -> 2 | F22: =261*E22 -> 522
C23: Total mis-shipment cost | E23: =E22*MS -> 300 | F23: =F22*MS -> 78300
C25: Savings from Eliminating Functions/Reducing Errors
C26: RESOURCE FUNCTION | D26: Your estimate | E26: Cost/day | F26: Savings/year
C27: Packing/checking | D27: 1 | E27: =E10 -> 336 | F27: =261*E27*D27 -> 87696
C28: Shipping | D28: 1 | E28: =E12 -> 268.8 | F28: =261*E28*D28 -> 70156.8
C29: Data entry clerks: Warehouse ops | D29: 1 | E29: =E14 -> 277.2 | F29: =261*E29*D29 -> 72349.2
C30: Data entry clerks: Physical count | D30: 1 | F30: =F16*D30 -> 1848
C31: Data entry clerks: EDI | D31: 1 | E31: =E17 -> 123.2 | F31: =261*E31*D31 -> 32155.2
C32: Added EDI warehouse labor | D32: 1 | E32: =E18 -> 134.4 | F32: =261*E32*D32 -> 35078.4
C33: Total labor savings (assumes you eliminate these functions) | F33: =SUM(F27:F30) -> 232050
C34: Total savings in mis-shipment reduction | F34: =F23 -> 78300
C35: Savings from compliance fines elimination | F35: ='General Warehouse Information'!D104 -> 30000
C36: Total hard savings per year (conservative) | F36: =SUM(F33:F35) -> 340350
C38: NPV1 Over Planning Horizon | D38: =NPV(DR,F36*(1+GR)*PH) -> 932263.0435
C40: Productivity Gains Analysis
C41: Your Current Order Fulfillment Costs
D42: RESOURCE COST
C43: RESOURCE FUNCTION | D43: % of total | E43: Cost/day | F43: Cost/year
C44: Picking costs | D44: =+E44/E49 -> 0.5599151644 | E44: =(((((261*((12-PKS)/12))*BCLW*'General Warehouse Information'!C48*8) / ((261*((12-PKS)/12))*OrdersN))*OrdersN) + ((((261*((PKS)/12))*BCLW*'General Warehouse Information'!D48*8) / ((261*(PKS/12))*OrdersP))*OrdersP))/2 -> 1478.4 | F44: =261*E44 -> 385862.4
C45: Packing/checking costs | D45: =+E45/E49 -> 0.1272534464 | E45: =(((((261*((12-PKS)/12))*BCLW*'General Warehouse Information'!C49*8) / ((261*((12-PKS)/12))*OrdersN))*OrdersN) + ((((261*((PKS)/12))*BCLW*'General Warehouse Information'!D49*8) / ((261*(PKS/12))*OrdersP))*OrdersP))/2 -> 336 | F45: 87696
C46: Stock handling costs | D46: =+E46/E49 -> 0.1527041357 | E46: =(((((261*((12-PKS)/12))*BCLW*'General Warehouse Information'!C50*8) / ((261*((12-PKS)/12))*OrdersN))*OrdersN) + ((((261*((PKS)/12))*BCLW*'General Warehouse Information'!D50*8) / ((261*(PKS/12))*OrdersP))*OrdersP))/2 -> 403.2 | F46: 105235.2
C47: Shipping costs | D47: =+E47/E49 -> 0.1018027572 | E47: =(((((261*((12-PKS)/12))*BCLW*'General Warehouse Information'!C51*8) / ((261*((12-PKS)/12))*OrdersN))*OrdersN) + ((((261*((PKS)/12))*BCLW*'General Warehouse Information'!D51*8) / ((261*(PKS/12))*OrdersP))*OrdersP))/2 -> 268.8 | F47: 70156.8
C48: Data entry clerk | D48: =+E48/E49 -> 0.05832449629 | E48: =(((((261*((12-PKS)/12))*BCLD*'General Warehouse Information'!C56*8) / ((261*((12-PKS)/12))*OrdersN))*OrdersN) + ((((261*((PKS)/12))*BCLD*'General Warehouse Information'!D56*8) / ((261*(PKS/12))*OrdersP))*OrdersP))/2 -> 154 | F48: 40194
C49: Total labor costs | D49: =SUM(D44:D48) -> 1 | E49: =SUM(E44:E48) -> 2640.4 | F49: 689144.4
C51: Current pick lines per hour | D51: =(('General Warehouse Information'!C29*'General Warehouse Information'!C30)/(('General Warehouse Information'!C48+'General Warehouse Information'!C49)*8)*(12-PKS)/12) + (('General Warehouse Information'!D29*'General Warehouse Information'!D30)/(('General Warehouse Information'!D48+'General Warehouse Information'!D49)*8)*(PKS)/12) -> 6.354166667
D53: PROCESS COST
C54: FULFILLMENT ACTIVITY | D54: % of total | E54: Cost/day | F54: Cost/year
C55: Traveling | D55: 0.55 | E55: =+E$49*D55 -> 1452.22 | F55: =+F$49*D55 -> 379029.42
C56: Searching | D56: 0.15 | E56: =+E$49*D56 -> 396.06 | F56: =+F$49*D56 -> 103371.66
C57: Extracting | D57: 0.1 | E57: =+E$49*D57 -> 264.04 | F57: =+F$49*D57 -> 68914.44
C58: Paperwork and other | D58: 0.2 | E58: =+E$49*D58 -> 528.08 | F58: =+F$49*D58 -> 137828.88
C59: Total labor costs | D59: =SUM(D55:D58) -> 1 | E59: =SUM(E55:E58) -> 2640.4 | F59: =SUM(F55:F58) -> 689144.4
D60: 0.35
C62: Order Fulfillment Assumptions & Potential Savings
C63: FULFILLMENT ACTIVITY | E63: Improvement Assumption | F63: Your estimate
C64: Traveling | E64: 0.4 | F64: 0.6
C65: Searching | E65: 0.4 | F65: 0.9
C66: Extracting | E66: 0.1 | F66: 0.1
C67: Paperwork and other | E67: =F67 -> 0.9 | F67: 0.9
D69: ANNUAL DOLLARS
C70: FULFILLMENT ACTIVITY | D70: Before WMS | E70: After WMS | F70: Savings
C71: Traveling | D71: =F55 -> 379029.42 | E71: =D71-(D71*F64) -> 151611.768 | F71: =D71-E71 -> 227417.652
C72: Searching | D72: =F56 -> 103371.66 | E72: =D72-(D72*F65) -> 10337.166 | F72: =D72-E72 -> 93034.494
C73: Extracting | D73: =F57 -> 68914.44 | E73: =D73-(D73*F66) -> 62022.996 | F73: =D73-E73 -> 6891.444
C74: Paperwork and other | D74: =F58 -> 137828.88 | E74: =D74-(D74*F67) -> 13782.888 | F74: =D74-E74 -> 124045.992
C75: Total labor costs | D75: =SUM(D71:D74) -> 689144.4 | E75: =SUM(E71:E74) -> 237754.818 | F75: =SUM(F71:F74) -> 451389.582
C77: Your Current Receiving & Put-away Costs
E78: RESOURCE COST
C79: RESOURCE FUNCTION | D79: % of total | E79: Cost/day | F79: Cost/year
C80: Data entry clerk | D80: =+F80/F82 -> 0.4545454545 | E80: =(((((261*((12-PKS)/12))*BCLW*'General Warehouse Information'!C55*8) / ((261*((12-PKS)/12))*PON))*PON) + ((((261*((PKS)/12))*BCLW*'General Warehouse Information'!D55*8) / ((261*(PKS/12))*POP))*POP))/2 -> 168 | F80: =261*E80 -> 43848
C81: Stock handling for put-away | D81: =+F81/F82 -> 0.5454545455 | E81: =(((((261*((12-PKS)/12))*BCLW*'General Warehouse Information'!C50*8*0.5) / ((261*((12-PKS)/12))*PON))*PON) + ((((261*((PKS)/12))*BCLW*'General Warehouse Information'!D50*8*0.5) / ((261*(PKS/12))*POP))*POP))/2 -> 201.6 | F81: =261*E81 -> 52617.6
C82: Total labor costs | D82: =SUM(D79:D81) -> 1 | E82: =SUM(E79:E81) -> 369.6 | F82: =SUM(F79:F81) -> 96465.6
E84: PROCESS COST
C85: RECEIVING ACTIVITY | D85: % of total | E85: Cost/day | F85: Cost/year
C86: Sorting and reconciling | D86: 0.55 | E86: =D86*E82 -> 203.28 | F86: =D86*F82 -> 53056.08
C87: Put-away travel | D87: 0.15 | E87: =D87*E82 -> 55.44 | F87: =D87*F82 -> 14469.84
C88: Paperwork and other | D88: 0.3 | E88: =D88*E82 -> 110.88 | F88: =D88*F82 -> 28939.68
C89: Total labor costs | D89: =SUM(D85:D88) -> 1 | E89: =SUM(E85:E88) -> 369.6 | F89: =SUM(F85:F88) -> 96465.6
C91: Receiving & Put-away Assumptions & Potential Savings
C92: RECEIVING ACTIVITY | E92: Improvement assumption | F92: Your estimate
C93: Sorting and reconciling | E93: 0.25 | F93: 0.25
C94: Put-away | E94: 0.2 | F94: 0.2
C95: Paperwork and other | E95: 0.2 | F95: 0.85
D97: ANNUAL DOLLARS
C98: RECEIVING ACTIVITY | D98: Before WMS | E98: After WMS | F98: Savings
C99: Sorting and reconciling | D99: =F86 -> 53056.08 | E99: =D99-(D99*F93) -> 39792.06 | F99: =D99-E99 -> 13264.02
C100: Put-away | D100: =F87 -> 14469.84 | E100: =D100-(D100*F94) -> 11575.872 | F100: =D100-E100 -> 2893.968
C101: Paperwork and other | D101: =F88 -> 28939.68 | E101: =D101-(D101*F95) -> 4340.952 | F101: =D101-E101 -> 24598.728
C102: Total labor costs | D102: =SUM(D98:D101) -> 96465.6 | E102: =SUM(E98:E101) -> 55708.884 | F102: =SUM(F98:F101) -> 40756.716
C104: Error Reduction
C105: COST OF MIS-SHIPMENTS | E105: Per day | F105: Per year
C106: Number of mis-shipments | E106: ='General Warehouse Information'!C94 -> 2 | F106: =261*E106 -> 522
C107: Total mis-shipment cost | E107: =E106*MS -> 300 | F107: =F106*MS -> 78300
C109: Total Savings
C110: FUNCTION
C111: Picking | F111: =D75-E75 -> 451389.582
C112: Receiving and put-away | F112: =F102 -> 40756.716
C113: Error reductions | F113: =+F107 -> 78300
C114: Compliance fines elimination | F114: ='General Warehouse Information'!D104 -> 30000
C115: Eliminate physical inventory count elimination | F115: =+F15 -> 6451.2
C117: SOFT SAVINGS
C118: More productive sales time | F118: 0
C119: Fewer lost sales because of inaccurate inventory | F119: 0
C120: Fewer lost customers because of errors | F120: $
C121: Reduced demurrage charges | F121: 0
C122: Reduced expediting | F122: 0
C123: Improved space utilization | F123: 0
F124: 0
F125: 0
F126: 0
F127: 0
C128: Total Speculative Annual Savings (aggressive) | F128: =SUM(F111:F127) -> 606897.498
C130: NPV2 Over Planning Horizon | D130: =NPV(DR,F128*(1+GR)*PH) -> 1662371.408
B132: Click here for RADIO BEACON contact information.
C134: HighJump Inc. www.highjump.com
